lending/lending_fUSD_20250409
["ID","MTS","AMOUNT","RATE_DAILY","PERIOD"]
[357621714,1744235617175,-151.041005,0.00045498,120]
[357621715,1744235617184,-2000.0,0.00045522,120]
[357621716,1744235617194,-506.8,0.00045589,30]
[357621717,1744235617203,-517.26330387,0.00045589,120]
[357621718,1744235617213,-2962.9463891,0.000456,120]
[357621719,1744235617222,-500.0,0.00045604,30]
[357621720,1744235617232,-500.0,0.00045625,30]
[357621721,1744235617242,-1000.0,0.00045655,30]
[357621722,1744235617251,-152.0,0.00045685,6]
[357621723,1744235617260,-165.94339,0.00045688,7]
[357621724,1744235617270,-1493.49058,0.00045688,30]
[357621725,1744235617280,-1000.0,0.00045694,30]
[357621726,1744235617289,-1067.0,0.00045746,30]
[357621727,1744235617298,-2000.0,0.00045753,120]
[357621728,1744235617308,-500.0,0.00045766,30]
[357621729,1744235617317,-884.89,0.0004578,30]
[357621730,1744235617326,-517.26330387,0.00045781,120]
[357621731,1744235617336,-1000.0,0.00045785,30]
[357621732,1744235617345,-151.041005,0.00045798,120]
[357621733,1744235617354,-150.0,0.0004586,120]
[357621734,1744235617363,-150.0,0.00045871,120]
[357621735,1744235617372,-165.94339,0.00045888,7]
[357621736,1744235617381,-1493.49058,0.00045888,30]
[357621737,1744235617390,-4150.95233714,0.000459,30]
[357621738,1744235617399,-10000.0,0.000459,120]
[357621739,1744235617410,-3178.75,0.000459,39]
[357621740,1744235617419,-3178.75,0.000459,39]
[357621741,1744235617428,-3178.75,0.000459,39]
[357621742,1744235617438,-3178.75,0.000459,39]
[357621743,1744235617448,-3178.75,0.000459,39]
[357621744,1744235617457,-3178.75,0.000459,39]
[357621745,1744235617467,-3178.75,0.000459,39]
[357621746,1744235617477,-3178.75,0.000459,39]
[357621747,1744235617490,-3178.75,0.000459,39]
[357621748,1744235617499,-3178.75,0.000459,39]
[357621749,1744235617509,-3178.75,0.000459,39]
[357621750,1744235617518,-3178.75,0.000459,39]
[357621751,1744235617528,-3178.75,0.000459,39]
[357621752,1744235617539,-3178.75,0.000459,39]
[357621753,1744235617548,-3178.75,0.000459,39]
[357621754,1744235617557,-3178.75,0.000459,39]
[357621755,1744235617567,-3178.75,0.000459,39]
[357621756,1744235617577,-3178.75,0.000459,39]
[357621757,1744235617586,-3178.75,0.000459,39]
[357621758,1744235617595,-3178.75,0.000459,39]
[357621759,1744235617605,-3178.75,0.000459,39]
[357621760,1744235617615,-3178.75,0.000459,39]
[357621761,1744235617625,-3178.75,0.000459,39]
[357621762,1744235617634,-3178.75,0.000459,39]
[357621763,1744235617644,-12500.0,0.00045907,10]
[357621764,1744235617653,-12500.0,0.00045916,10]
[357621765,1744235617663,-12500.0,0.0004592,10]
[357621766,1744235617672,-500.0,0.00045921,30]
[357621767,1744235617683,-12500.0,0.00045925,10]
[357621768,1744235617693,-12500.0,0.00045929,10]
[357621769,1744235617702,-12500.0,0.00045933,10]
[357621770,1744235617712,-12500.0,0.00045937,10]
[357621771,1744235617722,-12500.0,0.00045942,10]
[357621772,1744235617732,-12500.0,0.00045951,10]
[357621773,1744235617741,-12500.0,0.0004596,10]
[357621774,1744235617751,-12500.0,0.00045969,10]
[357621775,1744235617760,-1665.37,0.0004597,2]
[357621776,1744235617769,-12500.0,0.00045977,10]
[357621777,1744235617779,-2000.0,0.00045985,120]
[357621778,1744235617788,-12500.0,0.00045986,10]
[357621779,1744235617798,-500.0,0.00045998,30]
[357621780,1744235617808,-11311.84719909,0.00045999,10]
[357621781,1744235617816,-3084.2819657,0.00046,30]
[357621782,1744235617826,-300.0,0.00046,120]
[357621783,1744235617835,-69836.0,0.00046,60]
[357621784,1744235617844,-1000.0,0.00046,15]
[357621785,1744235617853,-1800.0,0.00046,47]
[357621786,1744235617863,-1132.33150743,0.00046,120]
[357621787,1744235617872,-417.82076201,0.00046,60]
[357621788,1744235617881,-390.6392141,0.00046,120]
[357621789,1744235617890,-1407.67333272,0.00046,120]
[357621790,1744235617900,-300.0,0.00046,120]
[357621791,1744235617909,-710.36195351,0.00046,120]
[357621792,1744235617918,-300.0,0.00046,30]
[357621793,1744235617927,-2000.0,0.00046,120]
[357621794,1744235617937,-2000.0,0.00046,120]
[357621795,1744235617947,-2755.0,0.00046,120]
[357621796,1744235617956,-500.0,0.00046,120]
[357621797,1744235617965,-1100.0,0.00046,120]
[357621798,1744235617975,-165.94339,0.00046088,7]
[357621799,1744235617984,-1493.49058,0.00046088,30]
[357621800,1744235617994,-200.0,0.00046177,120]
[357621801,1744235618003,-2000.0,0.00046217,120]
[357621802,1744235618013,-152.0,0.00046261,7]
[357621803,1744235618022,-165.94339,0.00046288,7]
[357621804,1744235618031,-1493.49058,0.00046288,30]
[357621805,1744235618041,-527.66,0.00046301,2]
[357621806,1744235618051,-1000.0,0.00046334,30]
[357621807,1744235618060,-3134.79994041,0.00046387,2]
[357621808,1744235618070,-150.0,0.00046409,120]
[357621809,1744235618079,-1000.0,0.00046438,30]
[357621810,1744235618089,-2000.0,0.00046449,120]
[357621811,1744235618098,-506.8,0.00046466,30]
[357621812,1744235618108,-165.94339,0.00046488,7]
[357621813,1744235618117,-1493.49058,0.00046488,30]
[357621814,1744235618126,-151.041005,0.00046498,120]
[357621815,1744235618136,-980.516872,0.000465,120]
[357621816,1744235618146,-150.0,0.00046503,2]
[357621817,1744235618155,-208.0,0.0004655,30]
[357621818,1744235618164,-209.0,0.0004655,30]
[357621819,1744235618174,-324.0,0.0004655,30]
[357621820,1744235618183,-500.0,0.00046565,30]
[357621821,1744235618194,-1000.0,0.00046575,120]
[357621822,1744235618203,-2000.0,0.00046681,120]
[357621823,1744235618213,-165.94339,0.00046688,7]
[357621824,1744235618223,-1493.49058,0.00046688,30]
[357621825,1744235618233,-500.0,0.00046705,30]
[357621826,1744235618242,-342.06,0.00046717,120]
[357621827,1744235618251,-455.85,0.00046739,30]
[357621828,1744235618261,-159.56,0.00046739,30]
[357621829,1744235618270,-151.041005,0.00046798,120]
[357621830,1744235618279,-2733.24605496,0.000468,10]
[357621831,1744235618289,-500.0,0.00046834,30]
[357621832,1744235618298,-152.0,0.00046836,8]
[357621833,1744235618307,-500.0,0.00046839,30]
[357621834,1744235618317,-1000.0,0.00046844,30]
[357621835,1744235618326,-25372.09523252,0.00046888,120]
[357621836,1744235618335,-165.94339,0.00046888,7]
[357621837,1744235618344,-2000.0,0.00046913,120]
[357621838,1744235618353,-1000.0,0.00047,20]
[357621839,1744235618363,-591.61549122,0.00047,30]
[357621840,1744235618372,-162.61056871,0.00047,120]
[357621841,1744235618381,-14964.67215067,0.00047,14]
[357621842,1744235618390,-1800.0,0.00047,48]
[357621843,1744235618399,-950.0,0.00047,2]
[357621844,1744235618409,-500.0,0.00047036,30]
[357621845,1744235618418,-500.0,0.00047045,30]
[357621846,1744235618427,-1493.49058,0.00047088,30]
[357621847,1744235618436,-1500.0,0.00047098,10]
[357621848,1744235618446,-2000.0,0.000471,2]
[357621849,1744235618455,-150.0,0.00047116,120]
[357621850,1744235618465,-500.0,0.00047141,30]
[357621851,1744235618474,-2000.0,0.00047144,120]
[357621852,1744235618488,-200.0,0.00047177,120]
[357621853,1744235618497,-1493.49058,0.00047288,30]
[357621854,1744235618507,-1000.0,0.00047326,30]
[357621855,1744235618516,-506.8,0.00047342,30]
[357621856,1744235618526,-2000.0,0.00047376,120]
[357621857,1744235618537,-152.0,0.00047411,9]
[357621858,1744235618547,-500.0,0.00047445,30]
[357621859,1744235618556,-1493.49058,0.00047488,30]
[357621860,1744235618568,-151.041005,0.00047498,120]
[357621861,1744235618578,-687.13965527,0.000475,30]
[357621862,1744235618587,-218.80814946,0.000475,120]
[357621863,1744235618597,-2593.52641747,0.000475,120]
[357621864,1744235618607,-150.0,0.00047585,2]
[357621865,1744235618617,-4439.76541973,0.000476,14]
[357621866,1744235619001,-5238.58924443,0.000476,2]
[357621867,1744235619012,-2000.0,0.00047608,120]
[357621868,1744235619022,-1000.0,0.0004764,30]
[357621869,1744235619032,-1493.49058,0.00047688,30]
[357621870,1744235619041,-6000.0,0.000477,2]
[357621871,1744235619052,-1000.0,0.00047739,30]
[357621872,1744235619061,-15705.08241585,0.00047777,2]
[357621873,1744235619071,-151.041005,0.00047798,120]
[357621874,1744235619080,-1166.3622391,0.000478,120]
[357621875,1744235619089,-23310.66683976,0.000478,120]
[357621876,1744235619099,-2000.0,0.0004784,120]
[357621877,1744235619108,-1493.49058,0.00047888,30]
[357621878,1744235619118,-3333.78635352,0.000479,120]
[357621879,1744235619128,-450.0,0.00047926,90]
[357621880,1744235619137,-3000.0,0.00047944,120]
[357621881,1744235619147,-1000.0,0.00047945,120]
[357621882,1744235619157,-152.0,0.00047986,10]
[357621883,1744235619166,-1000.0,0.00048,120]
[357621884,1744235619175,-867.26453071,0.00048,120]
[357621885,1744235619185,-857.75656648,0.00048,2]
[357621886,1744235619196,-1000.0,0.00048,20]
[357621887,1744235619205,-397.0,0.00048,12]
[357621888,1744235619214,-1452.14080451,0.00048,120]
[357621889,1744235619224,-300.0,0.00048,120]
[357621890,1744235619233,-1407.67333271,0.00048,120]
[357621891,1744235619243,-2072.11592214,0.00048,120]
[357621892,1744235619252,-300.98,0.00048,30]
[357621893,1744235619261,-1000.10374324,0.00048,2]
[357621894,1744235619271,-150.0,0.00048069,120]
[357621895,1744235619280,-2000.0,0.00048072,120]
[357621896,1744235619291,-342.06,0.00048087,120]
[357621897,1744235619300,-1493.49058,0.00048088,30]
[357621898,1744235619310,-1000.0,0.00048091,30]
[357621899,1744235619320,-500.0,0.00048117,30]
[357621900,1744235619329,-230.23480561,0.00048127,30]
[357621901,1744235619339,-150.0,0.00048127,30]
[357621902,1744235619348,-150.0,0.00048127,30]
[357621903,1744235619357,-521.43740343,0.00048127,30]
[357621904,1744235619367,-669.32291943,0.00048127,30]
[357621905,1744235619377,-150.0,0.00048127,30]
[357621906,1744235619386,-11433.35060769,0.00048127,30]
[357621907,1744235619396,-208.0,0.0004815,30]
[357621908,1744235619405,-209.0,0.0004815,30]
[357621909,1744235619415,-324.0,0.0004815,30]
[357621910,1744235619424,-1067.0,0.00048154,30]
[357621911,1744235619434,-500.0,0.00048167,30]
[357621912,1744235619444,-200.0,0.00048177,120]
[357621913,1744235619453,-150.0,0.000482,120]
[357621914,1744235619463,-205.3645,0.000482,120]
[357621915,1744235619472,-3000.0,0.00048218,120]
[357621916,1744235619482,-506.8,0.00048219,30]
[357621917,1744235619495,-1665.37,0.00048234,2]
[357621918,1744235619505,-500.0,0.00048286,30]
[357621919,1744235619515,-1493.49058,0.00048288,30]
[357621920,1744235619524,-2000.0,0.00048303,120]
[357621921,1744235619535,-500.0,0.00048308,30]
[357621922,1744235619544,-450.0,0.00048329,90]
[357621923,1744235619554,-1000.0,0.00048395,30]
[357621924,1744235619564,-1000.0,0.0004847,30]
[357621925,1744235619573,-1493.49058,0.00048488,30]
[357621926,1744235619583,-3000.0,0.00048492,120]
[357621927,1744235619592,-504.0,0.00048493,120]
[357621928,1744235619602,-151.041005,0.00048498,120]
[357621929,1744235619611,-1031.71126244,0.000485,120]
[357621930,1744235619621,-236.06681532,0.000485,120]
[357621931,1744235619630,-2000.0,0.00048535,120]
[357621932,1744235619639,-152.0,0.00048562,11]
[357621933,1744235619649,-276.24852415,0.000486,120]
[357621934,1744235619660,-500.0,0.00048611,30]
[357621935,1744235619670,-500.0,0.00048634,30]
[357621936,1744235619679,-150.0,0.00048666,2]
[357621937,1744235619689,-150.0,0.00048675,120]
[357621938,1744235619699,-150.0,0.00048687,120]
[357621939,1744235619708,-1493.49058,0.00048688,30]
[357621940,1744235619718,-150.0,0.00048714,120]
[357621941,1744235619727,-3000.0,0.00048766,120]
[357621942,1744235619736,-2000.0,0.00048767,120]
[357621943,1744235619746,-500.0,0.00048794,30]
[357621944,1744235619756,-150.0,0.00048795,120]
[357621945,1744235619766,-151.041005,0.00048798,120]
[357621946,1744235619775,-6309.14313237,0.000488,120]
[357621947,1744235619784,-367.83560156,0.000488,120]
[357621948,1744235619794,-499999.0,0.000488,120]
[357621949,1744235619803,-499999.0,0.000488,120]
[357621950,1744235619812,-442042.64344661,0.000488,120]
[357621951,1744235619821,-2369.64,0.000488,120]
[357621952,1744235619831,-3244.50795774,0.000488,120]
[357621953,1744235619840,-11086.08703027,0.000488,120]
[357621954,1744235619849,-36750.786036,0.000488,120]
[357621955,1744235619858,-62870.72133832,0.000488,120]
[357621956,1744235619868,-105551.92926683,0.000488,120]
[357621957,1744235619877,-538.87999999,0.000488,120]
[357621958,1744235619887,-117629.93537998,0.000488,120]
[357621959,1744235619897,-150.0,0.00048822,120]
[357621960,1744235619906,-5000.0,0.0004888,5]
[357621961,1744235619916,-5000.0,0.0004888,6]
[357621962,1744235619925,-1035.18429259,0.0004888,3]
[357621963,1744235619935,-1000.0,0.00048881,30]
[357621964,1744235619944,-1493.49058,0.00048888,30]
[357621965,1744235619953,-1000.0,0.000489,120]
[357621966,1744235619962,-1000.0,0.000489,120]
[357621967,1744235619971,-679.21,0.000489,120]
[357621968,1744235619981,-26740.52276318,0.000489,15]
[357621969,1744235619990,-500.0,0.00048983,30]
[357621970,1744235619999,-2000.0,0.00048999,120]
[357621971,1744235620009,-50000.0,0.00049,49]
[357621972,1744235620018,-13263.10370453,0.00049,120]
[357621973,1744235620027,-6687.78388047,0.00049,15]
[357621974,1744235620037,-2159.86,0.00049,90]
[357621975,1744235620046,-6094.0,0.00049,120]
[357621976,1744235620055,-1000.0,0.00049,25]
[357621977,1744235620064,-465.31061011,0.00049,2]
[357621978,1744235620075,-276.69102623,0.00049,120]
[357621979,1744235620084,-183.57919924,0.00049,120]
[357621980,1744235620093,-469.84736392,0.00049,120]
[357621981,1744235620103,-189.12472942,0.00049,30]
[357621982,1744235620113,-1000.0,0.00049,2]
[357621983,1744235620122,-150.0,0.00049007,120]
[357621984,1744235620131,-1100.0,0.0004904,120]
[357621985,1744235620140,-700.0,0.0004904,120]
[357621986,1744235620150,-3000.0,0.0004904,120]
[357621987,1744235620159,-1493.49058,0.00049088,30]
[357621988,1744235620168,-506.8,0.00049096,30]
[357621989,1744235620177,-4251.52752273,0.00049107,15]
[357621990,1744235620186,-152.0,0.00049137,12]
[357621991,1744235620196,-200.0,0.00049177,120]
[357621992,1744235620206,-500.0,0.0004919,30]
[357621993,1744235620215,-150.0,0.0004922,120]
[357621994,1744235620225,-2000.0,0.00049231,120]
[357621995,1744235620234,-1493.49058,0.00049288,30]
[357621996,1744235620245,-3178.75,0.000493,45]
[357621997,1744235620254,-3178.75,0.000493,45]
[357621998,1744235620263,-3178.75,0.000493,45]
[357621999,1744235620273,-3178.75,0.000493,45]
[357622000,1744235620282,-3178.75,0.000493,45]
[357622001,1744235620291,-3178.75,0.000493,45]
[357622002,1744235620300,-3178.75,0.000493,45]
[357622003,1744235620310,-3178.75,0.000493,45]
[357622004,1744235620319,-3178.75,0.000493,45]
[357622005,1744235620328,-3178.75,0.000493,45]
[357622006,1744235620337,-3178.75,0.000493,45]
[357622007,1744235620347,-3178.75,0.000493,45]
[357622008,1744235620356,-3178.75,0.000493,45]
[357622009,1744235620365,-3178.75,0.000493,45]
[357622010,1744235620375,-3178.75,0.000493,45]
[357622011,1744235620384,-3178.75,0.000493,45]
[357622012,1744235620394,-3178.75,0.000493,45]
[357622013,1744235620404,-3178.75,0.000493,45]
[357622014,1744235620414,-3178.75,0.000493,45]
[357622015,1744235620423,-3178.75,0.000493,45]
[357622016,1744235620432,-3178.75,0.000493,45]
[357622017,1744235620442,-3178.75,0.000493,45]
[357622018,1744235620452,-3178.75,0.000493,45]
[357622019,1744235620461,-3178.75,0.000493,45]
[357622020,1744235620470,-1100.0,0.00049314,120]
[357622021,1744235620479,-700.0,0.00049314,120]
[357622022,1744235620493,-500.0,0.00049315,2]
[357622023,1744235620503,-710.45,0.00049315,120]
[357622024,1744235620513,-173.7176951,0.00049315,120]
[357622025,1744235620522,-429.96976529,0.00049315,120]
[357622026,1744235620533,-686.38,0.00049315,120]
[357622027,1744235620543,-686.38,0.00049315,120]
[357622028,1744235620552,-686.38,0.00049315,120]
[357622029,1744235620561,-686.38,0.00049315,120]
[357622030,1744235620572,-686.38,0.00049315,120]
[357622031,1744235620582,-686.38,0.00049315,120]
[357622032,1744235620591,-686.38,0.00049315,120]
[357622033,1744235620601,-686.38,0.00049315,120]
[357622034,1744235620610,-686.38,0.00049315,120]
[357622035,1744235620619,-686.38,0.00049315,120]
[357622036,1744235620629,-686.38,0.00049315,120]
[357622037,1744235620638,-686.38,0.00049315,120]
[357622038,1744235620648,-686.38,0.00049315,120]
[357622039,1744235620658,-686.38,0.00049315,120]
[357622040,1744235620667,-686.38,0.00049315,120]
[357622041,1744235620676,-686.38,0.00049315,120]
[357622042,1744235620686,-686.38,0.00049315,120]
[357622043,1744235620695,-686.38,0.00049315,120]
[357622044,1744235620708,-686.38,0.00049315,120]
[357622045,1744235620718,-686.38,0.00049315,120]
[357622046,1744235620727,-686.38,0.00049315,120]
[357622047,1744235620736,-686.38,0.00049315,120]
[357622048,1744235620746,-686.38,0.00049315,120]
[357622049,1744235620755,-686.55438441,0.00049315,120]
[357622050,1744235620765,-500.0,0.00049315,2]
[357622051,1744235620774,-500.0,0.00049315,2]
[357622052,1744235620783,-630.43583212,0.00049315,2]
[357622053,1744235620793,-500.0,0.00049315,2]
[357622054,1744235620802,-500.0,0.00049315,2]
[357622055,1744235620812,-500.6473165,0.00049315,2]
[357622056,1744235620822,-2425.88,0.00049315,120]
[357622057,1744235620831,-2425.88,0.00049315,120]
[357622058,1744235620840,-2425.88,0.00049315,120]
[357622059,1744235620850,-2425.88,0.00049315,120]
[357622060,1744235620860,-2425.88,0.00049315,120]
[357622061,1744235620869,-2425.88,0.00049315,120]
[357622062,1744235620879,-2425.88,0.00049315,120]
[357622063,1744235620889,-2425.88,0.00049315,120]
[357622064,1744235620898,-2425.88,0.00049315,120]
[357622065,1744235620908,-2425.88,0.00049315,120]
[357622066,1744235620918,-2425.88,0.00049315,120]
[357622067,1744235620928,-2425.88,0.00049315,120]
[357622068,1744235620938,-2425.88,0.00049315,120]
[357622069,1744235620947,-2425.88,0.00049315,120]
[357622070,1744235620957,-2425.88,0.00049315,120]
[357622071,1744235620967,-2425.88,0.00049315,120]
[357622072,1744235620977,-2425.88,0.00049315,120]
[357622073,1744235620987,-2425.88,0.00049315,120]
[357622074,1744235620996,-2425.88,0.00049315,120]
[357622075,1744235621006,-2425.88,0.00049315,120]
[357622076,1744235621016,-2425.88,0.00049315,120]
[357622077,1744235621025,-2425.88,0.00049315,120]
[357622078,1744235621035,-2425.88,0.00049315,120]
[357622079,1744235621045,-2425.96525557,0.00049315,120]
[357622080,1744235621055,-500.0,0.00049315,2]
[357622081,1744235621066,-500.0,0.00049315,2]
[357622082,1744235621075,-500.0,0.00049315,2]
[357622083,1744235621085,-500.0,0.00049315,2]
[357622084,1744235621094,-500.0,0.00049315,2]
[357622085,1744235621104,-500.0,0.00049315,2]
[357622086,1744235621114,-500.0,0.00049315,2]
[357622087,1744235621123,-500.0,0.00049315,2]
[357622088,1744235621132,-500.0,0.00049315,2]
[357622089,1744235621141,-500.0,0.00049315,2]
[357622090,1744235621150,-500.0,0.00049315,2]
[357622091,1744235621159,-500.0,0.00049315,2]
[357622092,1744235621168,-500.0,0.00049315,2]
[357622093,1744235621178,-500.0,0.00049315,2]
[357622094,1744235621187,-500.0,0.00049315,2]
[357622095,1744235621196,-500.0,0.00049315,2]
[357622096,1744235621206,-500.0,0.00049315,2]
[357622097,1744235621216,-500.0,0.00049315,2]
[357622098,1744235621225,-500.0,0.00049315,2]
[357622099,1744235621234,-500.0,0.00049315,2]
[357622100,1744235621243,-500.0,0.00049315,2]
[357622101,1744235621253,-500.0,0.00049315,2]
[357622102,1744235621263,-290.93796122,0.00049315,2]
[357622103,1744235621272,-500.0,0.00049315,2]
[357622104,1744235621281,-503.66767214,0.00049315,2]
[357622105,1744235621291,-500.0,0.00049315,2]
[357622106,1744235621300,-500.0,0.00049315,2]
[357622107,1744235621435,-500.0,0.00049315,2]
[357622108,1744235621446,-500.0,0.00049315,2]
[357622109,1744235621455,-500.0,0.00049315,2]
[357622110,1744235621465,-500.0,0.00049315,2]
[357622111,1744235621474,-500.0,0.00049315,2]
[357622112,1744235621483,-500.0,0.00049315,2]
[357622113,1744235621497,-500.0,0.00049315,2]
[357622114,1744235621506,-500.0,0.00049315,2]
[357622115,1744235621515,-500.0,0.00049315,2]
[357622116,1744235621524,-500.0,0.00049315,2]
[357622117,1744235621535,-500.0,0.00049315,2]
[357622118,1744235621544,-500.0,0.00049315,2]
[357622119,1744235621553,-500.0,0.00049315,2]
[357622120,1744235621563,-500.0,0.00049315,2]
[357622121,1744235621573,-500.0,0.00049315,2]
[357622122,1744235621582,-621.68,0.00049315,2]
[357622123,1744235621592,-3092.27473044,0.00049315,120]
[357622124,1744235621601,-1000.0,0.00049315,120]
[357622125,1744235621611,-1434.5,0.00049315,120]
[357622126,1744235621620,-500.0,0.00049315,120]
[357622127,1744235621629,-500.0,0.00049315,120]
[357622128,1744235621638,-500.0,0.00049315,120]
[357622129,1744235621648,-500.0,0.00049315,120]
[357622130,1744235621657,-500.0,0.00049315,120]
[357622131,1744235621666,-500.0,0.00049315,120]
[357622132,1744235621676,-500.0,0.00049315,120]
[357622133,1744235621685,-500.0,0.00049315,120]
[357622134,1744235621695,-500.0,0.00049315,120]
[357622135,1744235621704,-436.18185188,0.00049315,120]
[357622136,1744235621713,-401.22079366,0.00049315,120]
[357622137,1744235621723,-500.0,0.00049315,120]
[357622138,1744235621732,-500.0,0.00049315,120]
[357622139,1744235621742,-500.0,0.00049315,120]
[357622140,1744235621751,-1081.1519672,0.00049315,120]
[357622141,1744235621760,-500.0,0.00049315,120]
[357622142,1744235621769,-1081.1519672,0.00049315,120]
[357622143,1744235621778,-500.0,0.00049315,120]
[357622144,1744235621787,-1081.1519672,0.00049315,120]
[357622145,1744235621796,-1081.1519672,0.00049315,120]
[357622146,1744235621805,-300.3115223,0.00049315,120]
[357622147,1744235621814,-1081.1519672,0.00049315,120]
[357622148,1744235621823,-200.03461359,0.00049315,120]
[357622149,1744235621832,-1081.1519672,0.00049315,120]
[357622150,1744235621841,-1081.1519672,0.00049315,120]
[357622151,1744235621850,-1081.1519672,0.00049315,120]
[357622152,1744235621859,-1081.1519672,0.00049315,120]
[357622153,1744235621868,-1081.1519672,0.00049315,120]
[357622154,1744235621876,-1081.1519672,0.00049315,120]
[357622155,1744235621885,-1081.1519672,0.00049315,120]
[357622156,1744235621894,-1081.1519672,0.00049315,120]
[357622157,1744235621904,-1081.1519672,0.00049315,120]
[357622158,1744235621913,-1081.1519672,0.00049315,120]
[357622159,1744235621922,-1081.1519672,0.00049315,120]
[357622160,1744235621931,-1081.1519672,0.00049315,120]
[357622161,1744235621940,-1081.1519672,0.00049315,120]
[357622162,1744235621949,-1081.1519672,0.00049315,120]
[357622163,1744235621958,-1081.1519672,0.00049315,120]
[357622164,1744235621967,-1081.1519672,0.00049315,120]
[357622165,1744235621976,-1081.1519672,0.00049315,120]
[357622166,1744235621986,-1081.1519672,0.00049315,120]
[357622167,1744235621995,-1081.1519672,0.00049315,120]
[357622168,1744235622004,-1081.1519672,0.00049315,120]
[357622169,1744235622014,-1081.1519672,0.00049315,120]
[357622170,1744235622023,-1081.1519672,0.00049315,120]
[357622171,1744235622032,-1081.1519672,0.00049315,120]
[357622172,1744235622041,-1081.1519672,0.00049315,120]
[357622173,1744235622051,-1081.1519672,0.00049315,120]
[357622174,1744235622060,-1081.1519672,0.00049315,120]
[357622175,1744235622069,-1081.1519672,0.00049315,120]
[357622176,1744235622078,-1081.1519672,0.00049315,120]
[357622177,1744235622087,-1081.1519672,0.00049315,120]
[357622178,1744235622096,-1081.1519672,0.00049315,120]
[357622179,1744235622106,-1081.1519672,0.00049315,120]
[357622180,1744235622115,-1081.1519672,0.00049315,120]
[357622181,1744235622124,-1081.1519672,0.00049315,120]
[357622182,1744235622133,-1081.1519672,0.00049315,120]
[357622183,1744235622142,-1081.1519672,0.00049315,120]
[357622184,1744235622151,-1081.1519672,0.00049315,120]
[357622185,1744235622160,-1081.1519672,0.00049315,120]
[357622186,1744235622171,-1081.1519672,0.00049315,120]
[357622187,1744235622181,-1081.1519672,0.00049315,120]
[357622188,1744235622190,-1081.1519672,0.00049315,120]
[357622189,1744235622199,-1081.1519672,0.00049315,120]
[357622190,1744235622209,-1081.1519672,0.00049315,120]
[357622191,1744235622219,-1081.1519672,0.00049315,120]
[357622192,1744235622228,-1081.1519672,0.00049315,120]
[357622193,1744235622237,-1081.1519672,0.00049315,120]
[357622194,1744235622246,-700.0,0.00049315,26]
[357622195,1744235622255,-700.0,0.00049315,26]
[357622196,1744235622263,-1000.0,0.00049315,20]
[357622197,1744235622273,-1000.0,0.00049315,20]
[357622198,1744235622282,-1000.0,0.00049315,20]
[357622199,1744235622291,-1000.0,0.00049315,20]
[357622200,1744235622299,-747.0,0.00049315,15]
[357622201,1744235622308,-301.79,0.00049315,60]
[357622202,1744235622317,-1000.0,0.00049315,15]
[357622203,1744235622327,-1000.0,0.00049315,15]
[357622204,1744235622335,-1000.0,0.00049315,15]
[357622205,1744235622344,-1000.0,0.00049315,15]
[357622206,1744235622354,-1000.0,0.00049315,15]
[357622207,1744235622363,-1000.0,0.00049315,15]
[357622208,1744235622371,-1000.0,0.00049315,15]
[357622209,1744235622380,-1000.0,0.00049315,15]
[357622210,1744235622389,-1000.0,0.00049315,15]
[357622211,1744235622399,-1000.0,0.00049315,15]
[357622212,1744235622408,-1000.0,0.00049315,15]
[357622213,1744235622418,-1000.0,0.00049315,15]